[Event "*** Titled Tuesday Blitz"]
[Site "Chess.com"]
[Date "2020.11.10"]
[Round "6"]
[White "Sviridov_Valery"]
[Black "asms9699"]
[Result "0-1"]
[WhiteElo "2774"]
[BlackElo "2600"]
[TimeControl "180+1"]
[EndTime "11:11:13 PST"]
[Termination "asms9699 won by resignation"]

1. Nf3 {[%clk 0:02:42.5]} 1... d5 {[%clk 0:02:58.6]} 2. g3 {[%clk 0:02:43.4]}
2... Nf6 {[%clk 0:02:58.1]} 3. Bg2 {[%clk 0:02:43.9]} 3... c5 {[%clk 0:02:58.7]}
4. O-O {[%clk 0:02:44.4]} 4... Nc6 {[%clk 0:02:59.3]} 5. d4 {[%clk 0:02:45]}
5... e6 {[%clk 0:02:59.5]} 6. c4 {[%clk 0:02:45.1]} 6... dxc4 {[%clk 0:03:00.4]}
7. Qa4 {[%clk 0:02:43.7]} 7... Bd7 {[%clk 0:03:00.3]} 8. dxc5 {[%clk 0:02:42.6]}
8... Bxc5 {[%clk 0:02:47.9]} 9. Qxc4 {[%clk 0:02:42.4]} 9... Be7 {[%clk
0:02:43.1]} 10. Rd1 {[%clk 0:02:42.2]} 10... O-O {[%clk 0:02:42.3]} 11. Nc3
{[%clk 0:02:40.8]} 11... Rc8 {[%clk 0:02:41.8]} 12. Bg5 {[%clk 0:02:35.1]} 12...
h6 {[%clk 0:02:35]} 13. Bxf6 {[%clk 0:02:30.3]} 13... Bxf6 {[%clk 0:02:35.9]}
14. Qb3 {[%clk 0:02:30.8]} 14... Na5 {[%clk 0:02:29.2]} 15. Qa3 {[%clk
0:02:24.6]} 15... Be7 {[%clk 0:02:07.2]} 16. b4 {[%clk 0:02:15.1]} 16... Nc6
{[%clk 0:01:50.6]} 17. Qb3 {[%clk 0:01:54.8]} 17... Bxb4 {[%clk 0:01:47.8]} 18.
Ne4 {[%clk 0:01:43.5]} 18... Qc7 {[%clk 0:01:19.9]} 19. Rac1 {[%clk 0:01:36.4]}
19... Rfd8 {[%clk 0:01:12.1]} 20. Ne1 {[%clk 0:01:01.6]} 20... Qb6 {[%clk
0:01:02.7]} 21. e3 {[%clk 0:00:56.8]} 21... Na5 {[%clk 0:00:56.7]} 22. Qb2
{[%clk 0:00:50]} 22... Rxc1 {[%clk 0:00:47.6]} 23. Qxc1 {[%clk 0:00:44.8]} 23...
Bc6 {[%clk 0:00:42.4]} 24. Nd3 {[%clk 0:00:42.7]} 24... Be7 {[%clk 0:00:39]} 25.
h4 {[%clk 0:00:38.9]} 25... Bd5 {[%clk 0:00:29.3]} 26. Rd2 {[%clk 0:00:27.6]}
26... Nc4 {[%clk 0:00:24.6]} 27. Rc2 {[%clk 0:00:27.9]} 27... Ba3 {[%clk
0:00:22.2]} 28. Qa1 {[%clk 0:00:27.7]} 28... Be7 {[%clk 0:00:19.1]} 29. Nf4
{[%clk 0:00:27.5]} 29... Qa5 {[%clk 0:00:15.4]} 30. Nxd5 {[%clk 0:00:26.5]}
30... exd5 {[%clk 0:00:16.3]} 31. Nc3 {[%clk 0:00:26.5]} 31... Bf6 {[%clk
0:00:14.6]} 32. Qc1 {[%clk 0:00:26.9]} 32... Bxc3 {[%clk 0:00:13.4]} 33. Rxc3
{[%clk 0:00:27.8]} 33... Qxa2 {[%clk 0:00:13.9]} 34. e4 {[%clk 0:00:28.3]} 34...
b5 {[%clk 0:00:11.4]} 35. exd5 {[%clk 0:00:28.5]} 35... a5 {[%clk 0:00:11]} 36.
Bf1 {[%clk 0:00:26.8]} 36... Rxd5 {[%clk 0:00:10.3]} 37. Bxc4 {[%clk 0:00:23.6]}
37... bxc4 {[%clk 0:00:10.1]} 38. Rxc4 {[%clk 0:00:24.5]} 38... Qb3 {[%clk
0:00:08.3]} 39. Rc8+ {[%clk 0:00:23.9]} 39... Kh7 {[%clk 0:00:08.5]} 40. Kh2
{[%clk 0:00:09]} 40... Rd1 {[%clk 0:00:05]} 41. Qf4 {[%clk 0:00:08.8]} 41... Qd5
{[%clk 0:00:03.7]} 42. f3 {[%clk 0:00:06.2]} 42... Qd2+ {[%clk 0:00:03.8]} 43.
Qxd2 {[%clk 0:00:05.4]} 43... Rxd2+ {[%clk 0:00:03.6]} 44. Kh3 {[%clk
0:00:06.3]} 44... a4 {[%clk 0:00:04]} 45. Rc7 {[%clk 0:00:06.6]} 45... f6 {[%clk
0:00:02.8]} 46. h5 {[%clk 0:00:05.9]} 46... Rd3 {[%clk 0:00:01.4]} 47. f4 {[%clk
0:00:05.5]} 47... a3 {[%clk 0:00:02.3]} 48. Ra7 {[%clk 0:00:05.2]} 48... Kg8
{[%clk 0:00:03]} 49. Kg4 {[%clk 0:00:05.6]} 49... Kf8 {[%clk 0:00:03.6]} 50.
Ra8+ {[%clk 0:00:04.7]} 50... Kf7 {[%clk 0:00:03.7]} 51. Ra7+ {[%clk 0:00:05.6]}
51... Kf8 {[%clk 0:00:04.2]} 52. Ra8+ {[%clk 0:00:06.1]} 52... Kf7 {[%clk
0:00:04.8]} 53. Ra7+ {[%clk 0:00:07]} 53... Kg8 {[%clk 0:00:05.6]} 54. Ra8+
{[%clk 0:00:07.3]} 54... Kh7 {[%clk 0:00:06.1]} 55. Ra7 {[%clk 0:00:08.2]} 55...
Rc3 {[%clk 0:00:05.8]} 56. Ra8 {[%clk 0:00:08.5]} 56... Rb3 {[%clk 0:00:06.4]}
57. Ra7 {[%clk 0:00:08.9]} 57... Re3 {[%clk 0:00:07]} 58. Ra8 {[%clk 0:00:09.1]}
58... Rd3 {[%clk 0:00:07.5]} 59. Ra7 {[%clk 0:00:09.6]} 59... Rc3 {[%clk
0:00:08]} 60. Ra8 {[%clk 0:00:10.1]} 60... Re3 {[%clk 0:00:08.4]} 61. Ra7 {[%clk
0:00:10.7]} 61... Kg8 {[%clk 0:00:09]} 62. Ra8+ {[%clk 0:00:11.2]} 62... Kf7
{[%clk 0:00:09.5]} 63. Ra7+ {[%clk 0:00:12.1]} 63... Ke6 {[%clk 0:00:09.9]} 64.
Ra8 {[%clk 0:00:13]} 64... f5+ {[%clk 0:00:10.3]} 65. Kh4 {[%clk 0:00:12.7]}
65... Re2 {[%clk 0:00:10]} 66. Kh3 {[%clk 0:00:11.7]} 66... a2 {[%clk
0:00:09.9]} 67. Ra5 {[%clk 0:00:12.2]} 67... Kd6 {[%clk 0:00:09.7]} 68. Ra6+
{[%clk 0:00:12.1]} 68... Kc5 {[%clk 0:00:09.9]} 69. Ra8 {[%clk 0:00:12.7]} 69...
Kb4 {[%clk 0:00:10]} 70. Rb8+ {[%clk 0:00:12.8]} 70... Kc3 {[%clk 0:00:10.3]}
71. Rc8+ {[%clk 0:00:13.3]} 71... Kb2 {[%clk 0:00:10.5]} 72. Rb8+ {[%clk
0:00:13.9]} 72... Kc1 {[%clk 0:00:10.9]} 73. Rc8+ {[%clk 0:00:13.4]} 73... Kb1
{[%clk 0:00:11.1]} 74. Ra8 {[%clk 0:00:14.1]} 74... a1=Q {[%clk 0:00:10.9]} 0-1

[Event "*** Titled Tuesday Blitz"]
[Site "Chess.com"]
[Date "2020.11.10"]
[Round "6"]
[White "sm_sharon"]
[Black "Javylavilla"]
[Result "1-0"]
[WhiteElo "2142"]
[BlackElo "2250"]
[TimeControl "180+1"]
[EndTime "11:11:16 PST"]
[Termination "sm_sharon won by checkmate"]

1. e4 {[%clk 0:03:00.9]} 1... c5 {[%clk 0:02:59.5]} 2. Nf3 {[%clk 0:03:00.3]}
2... Nc6 {[%clk 0:02:59.5]} 3. g3 {[%clk 0:03:00.3]} 3... d6 {[%clk 0:02:56.5]}
4. Bg2 {[%clk 0:03:00.4]} 4... g6 {[%clk 0:02:54.9]} 5. O-O {[%clk 0:03:00.7]}
5... Bg7 {[%clk 0:02:55.1]} 6. c3 {[%clk 0:03:00.7]} 6... Nf6 {[%clk 0:02:55]}
7. Qe2 {[%clk 0:03:00.8]} 7... O-O {[%clk 0:02:54.6]} 8. Rd1 {[%clk 0:03:00.2]}
8... Bg4 {[%clk 0:02:53.4]} 9. h3 {[%clk 0:02:59]} 9... Bxf3 {[%clk 0:02:51.9]}
10. Bxf3 {[%clk 0:02:59.9]} 10... e5 {[%clk 0:02:51.6]} 11. d3 {[%clk
0:02:56.3]} 11... Qd7 {[%clk 0:02:46.8]} 12. Bg2 {[%clk 0:02:53.7]} 12... Rae8
{[%clk 0:02:38.5]} 13. Bg5 {[%clk 0:02:53.1]} 13... h6 {[%clk 0:02:38]} 14. Bxf6
{[%clk 0:02:52.7]} 14... Bxf6 {[%clk 0:02:38.9]} 15. Nd2 {[%clk 0:02:52.9]}
15... Bg7 {[%clk 0:02:38.8]} 16. Nc4 {[%clk 0:02:52.9]} 16... b5 {[%clk
0:02:37.6]} 17. Ne3 {[%clk 0:02:52.3]} 17... f5 {[%clk 0:02:37.7]} 18. Nd5
{[%clk 0:02:50.7]} 18... f4 {[%clk 0:02:34]} 19. gxf4 {[%clk 0:02:39.8]} 19...
exf4 {[%clk 0:02:34.9]} 20. Qg4 {[%clk 0:02:38.4]} 20... Qf7 {[%clk 0:02:29.9]}
21. Bf3 {[%clk 0:02:24.4]} 21... Ne5 {[%clk 0:02:27]} 22. Qg2 {[%clk 0:02:23.7]}
22... g5 {[%clk 0:02:24.5]} 23. Kh1 {[%clk 0:02:23.5]} 23... h5 {[%clk
0:02:22.9]} 24. Rg1 {[%clk 0:02:17.4]} 24... Re6 {[%clk 0:02:15]} 25. Rad1
{[%clk 0:02:06.6]} 25... g4 {[%clk 0:02:08.2]} 26. hxg4 {[%clk 0:02:02.4]} 26...
hxg4 {[%clk 0:02:09.1]} 27. Bxg4 {[%clk 0:02:01.8]} 27... f3 {[%clk 0:01:59.1]}
28. Qh2 {[%clk 0:00:55.4]} 28... Nxg4 {[%clk 0:00:54.8]} 29. Rxg4 {[%clk
0:00:54.3]} 29... Rfe8 {[%clk 0:00:55.7]} 30. Rdg1 {[%clk 0:00:51.7]} 30... Kf8
{[%clk 0:00:51.8]} 31. Rf4 {[%clk 0:00:46.2]} 31... Rh6 {[%clk 0:00:48.1]} 32.
Rxf7+ {[%clk 0:00:43.9]} 32... Kxf7 {[%clk 0:00:49]} 33. Qxh6 {[%clk 0:00:39]}
33... Bxh6 {[%clk 0:00:49.9]} 34. Rg3 {[%clk 0:00:37.4]} 34... c4 {[%clk
0:00:43.1]} 35. Rxf3+ {[%clk 0:00:36.8]} 35... Kg7 {[%clk 0:00:42.6]} 36. Rg3+
{[%clk 0:00:35.2]} 36... Kf7 {[%clk 0:00:42.2]} 37. f3 {[%clk 0:00:24.1]} 37...
cxd3 {[%clk 0:00:41.6]} 38. Rg1 {[%clk 0:00:20.7]} 38... Rg8 {[%clk 0:00:38.4]}
39. Rd1 {[%clk 0:00:19.1]} 39... d2 {[%clk 0:00:37.9]} 40. f4 {[%clk 0:00:18.8]}
40... Re8 {[%clk 0:00:31]} 41. Rxd2 {[%clk 0:00:19.1]} 41... Rxe4 {[%clk
0:00:31]} 42. Kg2 {[%clk 0:00:17.5]} 42... Ke6 {[%clk 0:00:29.1]} 43. f5+ {[%clk
0:00:16.3]} 43... Kxf5 {[%clk 0:00:25.1]} 44. Rf2+ {[%clk 0:00:16.5]} 44... Ke5
{[%clk 0:00:24.3]} 45. Nc7 {[%clk 0:00:16.7]} 45... Rg4+ {[%clk 0:00:22.8]} 46.
Kf3 {[%clk 0:00:17]} 46... Rf4+ {[%clk 0:00:23]} 47. Ke2 {[%clk 0:00:17.2]}
47... Rxf2+ {[%clk 0:00:23.2]} 48. Kxf2 {[%clk 0:00:17.5]} 48... Bc1 {[%clk
0:00:22.7]} 49. b3 {[%clk 0:00:17.1]} 49... Bb2 {[%clk 0:00:19.5]} 50. Nxb5
{[%clk 0:00:17.3]} 50... a6 {[%clk 0:00:19.7]} 51. Nc7 {[%clk 0:00:17.5]} 51...
a5 {[%clk 0:00:19.9]} 52. Nb5 {[%clk 0:00:16.5]} 52... Kd5 {[%clk 0:00:20.2]}
53. Ke2 {[%clk 0:00:16.5]} 53... Kc5 {[%clk 0:00:20.4]} 54. a4 {[%clk
0:00:16.7]} 54... d5 {[%clk 0:00:19.4]} 55. Kd3 {[%clk 0:00:17]} 55... Bc1
{[%clk 0:00:19.2]} 56. Kc2 {[%clk 0:00:16.5]} 56... Bf4 {[%clk 0:00:19.1]} 57.
Nd4 {[%clk 0:00:16.5]} 57... Be5 {[%clk 0:00:19]} 58. Ne6+ {[%clk 0:00:16.7]}
58... Kd6 {[%clk 0:00:19.1]} 59. Ng5 {[%clk 0:00:17]} 59... Bg3 {[%clk
0:00:18.2]} 60. Kd3 {[%clk 0:00:16.4]} 60... Kc5 {[%clk 0:00:18.6]} 61. Ne6+
{[%clk 0:00:15.6]} 61... Kd6 {[%clk 0:00:17.9]} 62. Ng5 {[%clk 0:00:16.1]} 62...
Kc5 {[%clk 0:00:18.1]} 63. c4 {[%clk 0:00:16.6]} 63... d4 {[%clk 0:00:17.6]} 64.
Ne4+ {[%clk 0:00:16.2]} 64... Kb4 {[%clk 0:00:17.2]} 65. Nxg3 {[%clk 0:00:16]}
65... Kxb3 {[%clk 0:00:17.7]} 66. Kxd4 {[%clk 0:00:16.5]} 66... Kxa4 {[%clk
0:00:17.1]} 67. Ne4 {[%clk 0:00:17.4]} 67... Kb4 {[%clk 0:00:17]} 68. Nc3 {[%clk
0:00:17.4]} 68... a4 {[%clk 0:00:16.4]} 69. Nxa4 {[%clk 0:00:17.4]} 69... Kxa4
{[%clk 0:00:17.3]} 70. Kc5 {[%clk 0:00:17.8]} 70... Ka5 {[%clk 0:00:17.7]} 71.
Kd6 {[%clk 0:00:17.6]} 71... Ka6 {[%clk 0:00:18.6]} 72. c5 {[%clk 0:00:17.9]}
72... Kb7 {[%clk 0:00:19.5]} 73. Kd7 {[%clk 0:00:18.4]} 73... Kb8 {[%clk
0:00:19.5]} 74. c6 {[%clk 0:00:19.1]} 74... Ka7 {[%clk 0:00:19.8]} 75. c7 {[%clk
0:00:20]} 75... Kb6 {[%clk 0:00:20.6]} 76. c8=Q {[%clk 0:00:20.8]} 76... Kb5
{[%clk 0:00:21.5]} 77. Kd6 {[%clk 0:00:21]} 77... Kb4 {[%clk 0:00:22.4]} 78. Kd5
{[%clk 0:00:21.4]} 78... Kb5 {[%clk 0:00:23.3]} 79. Qb8+ {[%clk 0:00:21.2]}
79... Ka5 {[%clk 0:00:22.6]} 80. Kc4 {[%clk 0:00:20.5]} 80... Ka6 {[%clk
0:00:21.7]} 81. Kc5 {[%clk 0:00:20.4]} 81... Ka5 {[%clk 0:00:22.3]} 82. Qa8#
{[%clk 0:00:20.6]} 1-0

[Event "*** Titled Tuesday Blitz"]
[Site "Chess.com"]
[Date "2020.11.10"]
[Round "6"]
[White "Alomaterapia"]
[Black "ARTHURMOTIVATOR"]
[Result "0-1"]
[WhiteElo "2460"]
[BlackElo "2360"]
[TimeControl "180+1"]
[EndTime "11:11:17 PST"]
[Termination "ARTHURMOTIVATOR won by checkmate"]

1. e4 {[%clk 0:03:00.9]} 1... c6 {[%clk 0:02:59.2]} 2. d4 {[%clk 0:03:00.6]}
2... d5 {[%clk 0:02:55.1]} 3. e5 {[%clk 0:03:00.9]} 3... c5 {[%clk 0:02:53.7]}
4. dxc5 {[%clk 0:03:01.8]} 4... e6 {[%clk 0:02:52.5]} 5. Bd3 {[%clk 0:03:01.3]}
5... Nc6 {[%clk 0:02:48.4]} 6. Nf3 {[%clk 0:02:51.9]} 6... Bxc5 {[%clk
0:02:47.7]} 7. O-O {[%clk 0:02:51.6]} 7... Nge7 {[%clk 0:02:43.7]} 8. a3 {[%clk
0:02:50.4]} 8... Ng6 {[%clk 0:02:40.1]} 9. b4 {[%clk 0:02:50.5]} 9... Be7 {[%clk
0:02:38.1]} 10. Bb2 {[%clk 0:02:48.2]} 10... O-O {[%clk 0:02:37.8]} 11. c4
{[%clk 0:02:35.6]} 11... Nf4 {[%clk 0:02:25.5]} 12. Nc3 {[%clk 0:02:33.3]} 12...
Nxd3 {[%clk 0:02:20.7]} 13. Qxd3 {[%clk 0:02:32.7]} 13... dxc4 {[%clk
0:02:13.7]} 14. Qxc4 {[%clk 0:02:32.6]} 14... a6 {[%clk 0:02:11.1]} 15. Rfd1
{[%clk 0:02:31.7]} 15... Qe8 {[%clk 0:02:04.7]} 16. Qg4 {[%clk 0:02:22.6]} 16...
Kh8 {[%clk 0:01:58.9]} 17. Ne4 {[%clk 0:02:21.4]} 17... f5 {[%clk 0:01:41.1]}
18. exf6 {[%clk 0:02:17.4]} 18... gxf6 {[%clk 0:01:40.6]} 19. Qh4 {[%clk
0:01:32.4]} 19... e5 {[%clk 0:01:35.6]} 20. Nd6 {[%clk 0:01:23]} 20... Qg6
{[%clk 0:01:14.9]} 21. Nxc8 {[%clk 0:01:08.3]} 21... Raxc8 {[%clk 0:01:15.8]}
22. Rd7 {[%clk 0:01:02.7]} 22... Rg8 {[%clk 0:01:11.3]} 23. Qh3 {[%clk
0:00:49.5]} 23... Rcd8 {[%clk 0:00:54.7]} 24. Rxb7 {[%clk 0:00:45.8]} 24... Qc2
{[%clk 0:00:41.1]} 25. Rf1 {[%clk 0:00:07.5]} 25... Qxb2 {[%clk 0:00:34.9]} 26.
Rc7 {[%clk 0:00:07.6]} 26... Qc2 {[%clk 0:00:32.1]} 27. Qe6 {[%clk 0:00:06.3]}
27... Rd6 {[%clk 0:00:27.7]} 28. Qxe7 {[%clk 0:00:05.6]} 28... Nxe7 {[%clk
0:00:25.4]} 29. Rxc2 {[%clk 0:00:05.6]} 29... Rd3 {[%clk 0:00:26]} 30. Nd2
{[%clk 0:00:04.8]} 30... Nd5 {[%clk 0:00:25.3]} 31. Ne4 {[%clk 0:00:04.8]} 31...
Nf4 {[%clk 0:00:23.7]} 32. g3 {[%clk 0:00:05.1]} 32... Rg6 {[%clk 0:00:22.7]}
33. Re1 {[%clk 0:00:04.7]} 33... Rxa3 {[%clk 0:00:21.3]} 34. Nd6 {[%clk
0:00:04.4]} 34... Kg7 {[%clk 0:00:21.1]} 35. Nf5+ {[%clk 0:00:04.5]} 35... Kf7
{[%clk 0:00:20.6]} 36. Rc7+ {[%clk 0:00:05]} 36... Ke6 {[%clk 0:00:20.6]} 37.
Ne3 {[%clk 0:00:05]} 37... Nd3 {[%clk 0:00:18.2]} 38. Rd1 {[%clk 0:00:04.6]}
38... e4 {[%clk 0:00:18.3]} 39. Kg2 {[%clk 0:00:03.1]} 39... Ra2 {[%clk
0:00:18.4]} 40. Rf1 {[%clk 0:00:03.2]} 40... Rg5 {[%clk 0:00:18.7]} 41. h4
{[%clk 0:00:03.5]} 41... Rb5 {[%clk 0:00:18.6]} 42. Rc6+ {[%clk 0:00:03.9]}
42... Kf7 {[%clk 0:00:17.6]} 43. Rc4 {[%clk 0:00:04]} 43... Rb2 {[%clk
0:00:16.7]} 44. Rxe4 {[%clk 0:00:04.1]} 44... R5xb4 {[%clk 0:00:16.1]} 45. Rxb4
{[%clk 0:00:04.1]} 45... Rxb4 {[%clk 0:00:14.9]} 46. Kf3 {[%clk 0:00:03.2]}
46... a5 {[%clk 0:00:14.3]} 47. Nd5 {[%clk 0:00:02.9]} 47... Rb3 {[%clk
0:00:13.8]} 48. Ne3 {[%clk 0:00:03.1]} 48... Ne5+ {[%clk 0:00:13.2]} 49. Ke4
{[%clk 0:00:03]} 49... a4 {[%clk 0:00:13.1]} 50. Ra1 {[%clk 0:00:02.7]} 50... a3
{[%clk 0:00:13.1]} 51. f4 {[%clk 0:00:03]} 51... Nc6 {[%clk 0:00:10.7]} 52. g4
{[%clk 0:00:03.2]} 52... Nb4 {[%clk 0:00:10.7]} 53. Nc4 {[%clk 0:00:03]} 53...
Rg3 {[%clk 0:00:08.5]} 54. g5 {[%clk 0:00:02.8]} 54... fxg5 {[%clk 0:00:07.9]}
55. hxg5 {[%clk 0:00:03.4]} 55... a2 {[%clk 0:00:07.5]} 56. Ne5+ {[%clk
0:00:03]} 56... Ke7 {[%clk 0:00:06.3]} 57. Nc4 {[%clk 0:00:02.7]} 57... Rg2
{[%clk 0:00:05.6]} 58. Ne3 {[%clk 0:00:02.7]} 58... Re2 {[%clk 0:00:05.5]} 59.
Kf3 {[%clk 0:00:03.2]} 59... Rxe3+ {[%clk 0:00:05.7]} 60. Kxe3 {[%clk
0:00:03.4]} 60... Nc2+ {[%clk 0:00:06.6]} 61. Kd3 {[%clk 0:00:03.7]} 61... Nxa1
{[%clk 0:00:07.5]} 62. Kc3 {[%clk 0:00:04.3]} 62... Nb3 {[%clk 0:00:07.1]} 63.
Kxb3 {[%clk 0:00:03.6]} 63... a1=Q {[%clk 0:00:08]} 64. Kc4 {[%clk 0:00:03.6]}
64... Qa3 {[%clk 0:00:07.7]} 65. Kd4 {[%clk 0:00:04.5]} 65... Qb4+ {[%clk
0:00:07.6]} 66. Ke5 {[%clk 0:00:04.7]} 66... Qc5+ {[%clk 0:00:07.4]} 67. Ke4
{[%clk 0:00:04.9]} 67... Ke6 {[%clk 0:00:07.1]} 68. Kf3 {[%clk 0:00:05.8]} 68...
Kf5 {[%clk 0:00:07.4]} 69. Kg3 {[%clk 0:00:06]} 69... Qe3+ {[%clk 0:00:07.7]}
70. Kh4 {[%clk 0:00:06.9]} 70... Qxf4+ {[%clk 0:00:08]} 71. Kh5 {[%clk
0:00:07.8]} 71... Qxg5# {[%clk 0:00:08.1]} 0-1

[Event "*** Titled Tuesday Blitz"]
[Site "Chess.com"]
[Date "2020.11.10"]
[Round "6"]
[White "XDPS"]
[Black "Vsevolod_Ovchinnikov"]
[Result "1/2-1/2"]
[WhiteElo "2785"]
[BlackElo "2530"]
[TimeControl "180+1"]
[EndTime "11:11:25 PST"]
[Termination "Game drawn by repetition"]

1. e4 {[%clk 0:01:48.1]} 1... e6 {[%clk 0:02:59.7]} 2. d4 {[%clk 0:01:46.1]}
2... d5 {[%clk 0:03:00.3]} 3. Nc3 {[%clk 0:01:42.2]} 3... Bb4 {[%clk 0:02:59.4]}
4. Ne2 {[%clk 0:01:41.5]} 4... dxe4 {[%clk 0:02:58.1]} 5. a3 {[%clk 0:01:41.9]}
5... Be7 {[%clk 0:02:57.4]} 6. Nxe4 {[%clk 0:01:41.2]} 6... Nf6 {[%clk 0:02:58]}
7. Nxf6+ {[%clk 0:01:41.8]} 7... Bxf6 {[%clk 0:02:58.9]} 8. Be3 {[%clk
0:01:42.6]} 8... b6 {[%clk 0:02:58]} 9. Qd2 {[%clk 0:01:43]} 9... Bb7 {[%clk
0:02:57.7]} 10. O-O-O {[%clk 0:01:43.6]} 10... Nd7 {[%clk 0:02:58]} 11. f3
{[%clk 0:01:43.7]} 11... Qe7 {[%clk 0:02:55.1]} 12. Nf4 {[%clk 0:01:43.3]} 12...
g6 {[%clk 0:02:50.1]} 13. h4 {[%clk 0:01:42.9]} 13... O-O-O {[%clk 0:02:48]} 14.
h5 {[%clk 0:01:42.7]} 14... Kb8 {[%clk 0:02:47.6]} 15. Kb1 {[%clk 0:01:42.2]}
15... e5 {[%clk 0:02:36.9]} 16. Ne2 {[%clk 0:01:23.6]} 16... exd4 {[%clk
0:02:21.9]} 17. Bxd4 {[%clk 0:01:24.5]} 17... Rhe8 {[%clk 0:02:10.5]} 18. Qc1
{[%clk 0:01:12.3]} 18... Bg5 {[%clk 0:02:04.7]} 19. f4 {[%clk 0:01:12]} 19...
Bf6 {[%clk 0:02:04.7]} 20. hxg6 {[%clk 0:01:10.9]} 20... hxg6 {[%clk 0:02:04.5]}
21. Nc3 {[%clk 0:01:07.8]} 21... Nc5 {[%clk 0:01:46]} 22. Bxf6 {[%clk
0:01:05.4]} 22... Qxf6 {[%clk 0:01:46.9]} 23. Rxd8+ {[%clk 0:01:01.6]} 23...
Rxd8 {[%clk 0:01:45.7]} 24. Rg1 {[%clk 0:00:59.1]} 24... Qd4 {[%clk 0:01:29.9]}
25. Be2 {[%clk 0:00:58.5]} 25... Re8 {[%clk 0:01:21.4]} 26. Bb5 {[%clk
0:00:55.3]} 26... Rh8 {[%clk 0:01:14]} 27. g4 {[%clk 0:00:35.9]} 27... a6 {[%clk
0:01:12]} 28. Be2 {[%clk 0:00:32.6]} 28... Ne4 {[%clk 0:00:57.1]} 29. Nxe4
{[%clk 0:00:20.1]} 29... Qxe4 {[%clk 0:00:58]} 30. Bd3 {[%clk 0:00:19.5]} 30...
Qf3 {[%clk 0:00:57.7]} 31. f5 {[%clk 0:00:18.9]} 31... gxf5 {[%clk 0:00:51.1]}
32. gxf5 {[%clk 0:00:19.8]} 32... b5 {[%clk 0:00:47.5]} 33. Rf1 {[%clk 0:00:18]}
33... Qg3 {[%clk 0:00:33.9]} 34. f6 {[%clk 0:00:17.8]} 34... Bd5 {[%clk
0:00:30.8]} 35. a4 {[%clk 0:00:11.9]} 35... bxa4 {[%clk 0:00:24.8]} 36. Bxa6
{[%clk 0:00:12.2]} 36... Qd6 {[%clk 0:00:19.6]} 37. Bd3 {[%clk 0:00:12.1]} 37...
Rh4 {[%clk 0:00:17.5]} 38. Qe1 {[%clk 0:00:09.6]} 38... a3 {[%clk 0:00:16]} 39.
Qe8+ {[%clk 0:00:04.3]} 39... Ka7 {[%clk 0:00:14.8]} 40. Qe7 {[%clk 0:00:04.8]}
40... a2+ {[%clk 0:00:13.7]} 41. Ka1 {[%clk 0:00:04.5]} 41... Rh2 {[%clk
0:00:12.6]} 42. Qxd6 {[%clk 0:00:03.6]} 42... cxd6 {[%clk 0:00:13.5]} 43. c4
{[%clk 0:00:01.8]} 43... Be6 {[%clk 0:00:12.1]} 44. Kxa2 {[%clk 0:00:01.9]}
44... Kb6 {[%clk 0:00:12.7]} 45. Ka3 {[%clk 0:00:01.5]} 45... Kc5 {[%clk
0:00:13.2]} 46. Rf4 {[%clk 0:00:01.8]} 46... Rh3 {[%clk 0:00:10.5]} 47. b4+
{[%clk 0:00:02.3]} 47... Kb6 {[%clk 0:00:08.2]} 48. Rd4 {[%clk 0:00:03.2]} 48...
Kc7 {[%clk 0:00:06.7]} 49. Ka4 {[%clk 0:00:02.9]} 49... Bd7+ {[%clk 0:00:06.5]}
50. Kb3 {[%clk 0:00:02.9]} 50... Bf5 {[%clk 0:00:06.1]} 51. Kc3 {[%clk
0:00:03.3]} 51... Rf3 {[%clk 0:00:06.1]} 52. Rd5 {[%clk 0:00:03.6]} 52... Bxd3
{[%clk 0:00:06.2]} 53. Rxd3 {[%clk 0:00:03.8]} 53... Rxf6 {[%clk 0:00:06.8]} 54.
Re3 {[%clk 0:00:04.4]} 54... Kd7 {[%clk 0:00:06.4]} 55. b5 {[%clk 0:00:04.8]}
55... Rf1 {[%clk 0:00:06.3]} 56. Kb4 {[%clk 0:00:05.1]} 56... Rb1+ {[%clk
0:00:06.1]} 57. Ka5 {[%clk 0:00:05.5]} 57... Rc1 {[%clk 0:00:05.7]} 58. Re4
{[%clk 0:00:05.9]} 58... f5 {[%clk 0:00:05.6]} 59. Rh4 {[%clk 0:00:06.4]} 59...
Ke6 {[%clk 0:00:04.1]} 60. b6 {[%clk 0:00:06.4]} 60... Ke5 {[%clk 0:00:03.4]}
61. b7 {[%clk 0:00:06.1]} 61... Rb1 {[%clk 0:00:03.8]} 62. Ka6 {[%clk
0:00:06.4]} 62... d5 {[%clk 0:00:03.4]} 63. c5 {[%clk 0:00:05.8]} 63... d4
{[%clk 0:00:03.8]} 64. c6 {[%clk 0:00:06.2]} 64... Kd6 {[%clk 0:00:04.2]} 65.
Rh6+ {[%clk 0:00:06.4]} 65... Kc7 {[%clk 0:00:04.5]} 66. Rh7+ {[%clk 0:00:06.2]}
66... Kxc6 {[%clk 0:00:04.6]} 67. Rh6+ {[%clk 0:00:06.5]} 67... Kd5 {[%clk
0:00:04.6]} 68. Rb6 {[%clk 0:00:06]} 68... Ra1+ {[%clk 0:00:04.4]} 69. Kb5
{[%clk 0:00:06.5]} 69... Rb1+ {[%clk 0:00:04.8]} 70. Ka5 {[%clk 0:00:07]} 70...
Ra1+ {[%clk 0:00:05.3]} 71. Kb4 {[%clk 0:00:07]} 71... Rb1+ {[%clk 0:00:05.7]}
72. Ka5 {[%clk 0:00:07.2]} 72... Ra1+ {[%clk 0:00:06.2]} 73. Kb5 {[%clk
0:00:07.6]} 73... Rb1+ {[%clk 0:00:06.6]} 74. Ka6 {[%clk 0:00:08.1]} 74... Ra1+
{[%clk 0:00:06.9]} 75. Kb5 {[%clk 0:00:08.7]} 1/2-1/2